Cogmind - Beta 11 @@@ ROGUE MODE // 2022.04.07 @ 19:03:26 Player: 3.14 Result: Self-destructed Performance ------------- Evolutions (5) 2500 Regions Visited (13) 2600 Robots Destroyed (161) 805 Value Destroyed (5582) 5582 Prototype IDs (21) 420 Alien Tech Used (1) 200 Bonus (486) 486 TOTAL SCORE: 12593 Bonus ------- High Alert Combat Kills 256 Follower Combat Kills 96 Met Data Miner 300 Friendly Fire -166 Cogmind --------- Core Integrity 598/1000 Matter 265/300 Energy 170/170 System Corruption 5% Temperature Danger (475) Movement Treading (245) Ox1 Location -5/Factory Parts ------- > --- POWER (2) -------- Light Antimatter Reactor > --- PROPULSION (4) --- Improved Treads Armored Medium Treads Carbon-fiber Leg Flexi-carbon Leg > --- UTILITY (9) ------ Advanced Heat Sink High-capacity Storage Unit Improved Targeting Computer Advanced Melee Analysis Suite Core Analyzer Armor Integrity Analyzer Layered Light Armor Plating Thermal Shield Improved System Shield > --- WEAPON (3) ------- Advanced Beam Cannon Heavy Ion Cannon Heavy Phase Cannon > --- INVENTORY (20) --- Layered Light Armor Plating Layered Light Armor Plating Layered Light Armor Plating Layered Light Armor Plating Layered Light Armor Plating Layered Medium Armor Plating Thermal Shield Dimensional Node Initializer Gatling Laser Plasma Cannon Plasma Cannon Heavy Phase Cannon Mini Grenade Launcher Powered Hammer Peak State ------------ > --- POWER ------------ Micro Nuclear Core Light Fission Core > --- PROPULSION ------- Carbon-fiber Leg Carbon-fiber Leg Flexi-carbon Leg Flexi-carbon Leg > --- UTILITY ---------- Advanced Heat Sink Advanced Heat Sink High-capacity Storage Unit Improved Targeting Computer Advanced Melee Analysis Suite Advanced Melee Analysis Suite Core Analyzer Layered Light Armor Plating Thermal Shield > --- WEAPON ----------- Advanced Beam Cannon Advanced Beam Cannon Heavy Ion Cannon > --- INVENTORY -------- Light Antimatter Reactor Improved Treads Armored Medium Treads Armor Integrity Analyzer Layered Light Armor Plating Layered Light Armor Plating Layered Light Armor Plating Layered Light Armor Plating Layered Light Armor Plating Layered Light Armor Plating Layered Medium Armor Plating Dimensional Node Initializer Heavy Particle Gun Gatling Laser Plasma Cannon Plasma Cannon Heavy Phase Cannon Heavy Phase Cannon Mini Grenade Launcher Powered Hammer [Rating: 80] Favorites ----------- Power Heavy Ion Engine Engine Heavy Ion Engine Power Core Neutrino Core Reactor Cold Fusion Reactor Propulsion Light Treads Treads Light Treads Leg Flexi-carbon Leg Utility Improved Targeting Computer Device Improved Heat Sink Storage High-capacity Storage Unit Processor Improved Targeting Computer Hackware Improved System Shield Protection Hardened Medium Armor Plating Weapon Advanced Beam Cannon Energy Gun Gatling Laser Energy Cannon Advanced Beam Cannon Ballistic Gun Light Assault Rifle Launcher Mini Grenade Launcher Impact Weapon Powered Hammer Build | -11 -10 -9 -9 -9 -8 -8 -8 -7 -7 -7 -6 -6 -5 ------- Run | Scr Mat Mat Min Exi Min Mat Sto Fac Low Dat Pro Fac Fac Slots Evolved 10 | . . 2 . . . 2 . 2 . . . 2 2 Power . | . . . . . . . . . . . . . . Propulsion 2 | . . 1 . . . 1 . . . . . . . Utility 7 | . . 1 . . . 1 . 2 . . . 1 2 Weapon 1 | . . . . . . . . . . . . 1 . Parts Attached 176 | 6 1 17 4 1 . 5 34 34 11 2 13 20 28 Power 18 | 1 . 3 1 . . . 4 1 1 . . 4 3 Engine 10 | 1 . 3 1 . . . 3 . . . . 1 1 Core 5 | . . . . . . . . . 1 . . 3 1 Reactor 3 | . . . . . . . 1 1 . . . . 1 Propulsion 49 | 2 . 3 2 . . 2 15 11 3 . 1 6 4 Treads 43 | 2 . 3 2 . . 2 15 11 3 . 1 2 2 Leg 6 | . . . . . . . . . . . . 4 2 Wheel . | . . . . . . . . . . . . . . Hover . | . . . . . . . . . . . . . . Flight . | . . . . . . . . . . . . . . Utility 48 | 1 1 3 . 1 . 2 1 9 3 . 4 8 15 Device 13 | . . 1 . . . 1 . 2 1 . . 3 5 Storage 4 | 1 1 . . 1 . . . 1 . . . . . Processor 9 | . . . . . . . . 3 . . . 2 4 Hackware 1 | . . . . . . . . . . . . . 1 Protection 21 | . . 2 . . . 1 1 3 2 . 4 3 5 Artifact . | . . . . . . . . . . . . . . Weapon 61 | 2 . 8 1 . . 1 14 13 4 2 8 2 6 Energy Gun 19 | 1 . 4 . . . . 7 7 . . . . . Energy Cannon 22 | . . 1 1 . . 1 4 1 2 2 4 1 5 Ballistic Gun 4 | 1 . 3 . . . . . . . . . . . Ballistic Cannon . | . . . . . . . . . . . . . . Launcher 3 | . . . . . . . 3 . . . . . . Special Weapon . | . . . . . . . . . . . . . . Impact Weapon 13 | . . . . . . . . 5 2 . 4 1 1 Slashing Weapon . | . . . . . . . . . . . . . . Piercing Weapon . | . . . . . . . . . . . . . . Special Melee Weapon . | . . . . . . . . . . . . . . Unidentified Prototypes 9 | . . 1 . . . . 6 . . . 1 . 1 Corrupted Parts 2 | . . . . . . . . . 2 . . . . System Corruption 7 | . . . . . . . . . 7 . . . . Parts Lost 28 | . . 2 . . . . 1 1 3 . 2 12 7 Power 9 | . . 2 . . . . . 1 1 . . 3 2 Propulsion 10 | . . . . . . . . . 1 . 1 6 2 Utility 6 | . . . . . . . 1 . 1 . 1 1 2 Weapon 3 | . . . . . . . . . . . . 2 1 Highest Loss Streak 6 | . . 1 . . . . 1 1 2 . 1 5 6 To Critical Strikes 1 | . . . . . . . . . . . . . 1 Average Slot Usage (%) 93 | . 85 83 100 100 100 96 100 99 93 84 91 90 89 Engine 5 | . 14 10 11 11 11 9 9 5 . . . 1 . Core 2 | . . . . . . . . . 2 7 7 8 6 Treads 26 | . 28 30 33 33 33 32 36 30 29 30 28 13 . Leg 2 | . . . . . . . . . . . . 8 18 Device 9 | . . 3 11 11 11 18 18 7 4 7 7 13 14 Storage 8 | . 14 11 11 11 11 9 9 7 7 7 7 6 5 Processor 11 | . . . . . . . . 21 23 23 20 14 14 Protection 7 | . . 5 11 11 11 9 9 7 7 7 6 6 8 Energy Gun 4 | . 14 13 . . . . 4 6 7 . . . . Energy Cannon 10 | . . . 21 22 22 18 13 6 5 . 11 12 15 Ballistic Gun 1 | . 14 7 . . . . . . . . . . . Impact Weapon 1 | . . . . . . . . 1 1 . 2 2 . Naked Turns . | . . . . . . . . . . . . . . Heaviest Build 88 | 13 33 37 37 57 57 62 66 76 83 77 71 88 86 Greatest Support 114 | 40 40 60 60 60 60 80 80 112 112 107 112 114 70 Greatest Overweight (x) 1 | . . . . . . 1 . . . . . 1 1 Average Overweight (x) . | . . . . . . . . . . . . . . Largest Inventory Capacity 20 | 8 15 15 15 20 20 20 20 20 20 20 20 20 20 Average Capacity 18 | 7 14 15 15 17 20 20 20 20 20 20 20 20 20 Most Carried 20 | 3 13 15 15 15 15 20 20 20 20 20 19 20 20 Average Carried 17 | 2 6 14 15 15 15 18 19 19 19 19 18 18 19 Final Capacity 20 | 8 15 15 15 20 20 20 20 20 20 20 20 20 20 Final Carried 20 | 3 13 15 15 15 15 20 20 20 18 18 18 19 14 Class Distribution -------------------- 49% | Scavenger-Mutant 37% | Mutant 7% | Gunner 4% | Scavenger-Gunner Dominant Class ---------------- Mutant | -10/Materials Scavenger-Mutant | -9/Materials Scavenger-Mutant | -9/Mines Scavenger-Mutant | -9/Exiles Scavenger-Mutant | -8/Mines Scavenger-Mutant | -8/Materials Scavenger-Mutant | -8/Storage Scavenger-Mutant | -7/Factory Mutant | -7/Lower Caves Mutant | -7/Data Miner Mutant | -6/Proximity Caves Gunner | -6/Factory Scavenger-Gunner | -5/Factory Resources | -11 -10 -9 -9 -9 -8 -8 -8 -7 -7 -7 -6 -6 -5 ----------- Run | Scr Mat Mat Min Exi Min Mat Sto Fac Low Dat Pro Fac Fac Matter Collected 2367 | 266 41 178 50 . 30 50 353 312 111 . 277 458 241 Remotely . | . . . . . . . . . . . . . . Salvage Created 7455 | 72 212 458 96 . 53 355 1385 1880 444 . 204 1731 565 Parts 301 | 1 11 33 5 . . 21 71 72 12 . 1 44 30 Haulers Intercepted 5 | . . . . . . . 4 1 . . . . . Recyclers Shooed 17 | . 1 1 . . . 2 1 6 . . . . 6 Parts Field Recycled . | . . . . . . . . . . . . . . Retrieved Matter . | . . . . . . . . . . . . . . Parts Self-Destructed 11 | . . . . . . . . . 6 . 5 . . Prevented 2 | . . . . . . . . . 2 . . . . Kills | -11 -10 -9 -9 -9 -8 -8 -8 -7 -7 -7 -6 -6 -5 ------- Run | Scr Mat Mat Min Exi Min Mat Sto Fac Low Dat Pro Fac Fac Combat Hostiles Destroyed 119 | . 7 13 2 . 1 4 21 26 9 . 3 25 8 Melee 15 | . . . . . . . 1 6 1 . . 5 2 Guns 45 | . 7 12 . . . . 5 14 7 . . . . Cannons 41 | . . . 2 . . 4 9 4 . . 3 16 3 AOE 3 | . . . . . . . 3 . . . . . . Classes Destroyed 16 | 1 3 4 . . 1 . 3 1 1 . 1 . 1 Worker 11 | . . . . . . . 2 4 . . . 3 2 Builder 2 | . . 1 . . . . . . . . . . 1 Hauler 5 | . . . . . . . 4 1 . . . . . Recycler 17 | 1 1 . . . . 2 3 8 . . . 2 . Mechanic 1 | . . 1 . . . . . . . . . . . Operator 3 | . . 1 . . . . 1 . . . . 1 . Watcher 2 | . 1 . . . . . . . . . . . 1 Swarmer 19 | . 6 6 . . . . 3 3 1 . . . . Grunt 53 | . 1 5 2 . . . 7 15 3 . 2 16 2 Brawler 4 | . . . . . . . 1 1 2 . . . . Researcher 1 | . . . . . . . . . . . 1 . . Sentry 23 | . . 2 . . . 4 9 4 1 . . 2 1 Hunter 11 | . . . . . 1 . 1 2 1 . 1 3 2 Programmer 7 | . . . . . . . . 1 . . . 4 2 Heavy 1 | . . . . . . . . . . . . . 1 Thief 1 | . . . . . . . . . 1 . . . . Best Kill Streak 9 | 1 3 3 2 . 1 2 6 9 6 . 2 8 4 Combat Bots Only 6 | . 2 3 2 . 1 2 4 3 6 . 2 6 3 Max Kills in Single Turn 4 | 1 2 1 1 . 1 1 4 2 1 . 1 1 1 Gunslinging . | . . . . . . . . . . . . . . Exploded 3 | . . . . . . . 3 . . . . . . Melee 1 | . . . . . . . 1 1 1 . . 1 1 Uniques/NPCs Destroyed . | . . . . . . . . . . . . . . Combat | -11 -10 -9 -9 -9 -8 -8 -8 -7 -7 -7 -6 -6 -5 -------- Run | Scr Mat Mat Min Exi Min Mat Sto Fac Low Dat Pro Fac Fac Damage Taken 9260 | . 277 642 130 . 94 29 906 1413 1093 . 463 2337 1876 Core 1072 | . 57 97 . . 12 . 125 77 46 . 27 229 402 Absorbed by Shields . | . . . . . . . . . . . . . . Regen/Repaired (Parts) 152 | . . 81 . . . . 71 . . . . . . Core Remaining (%) 79 | 100 77 . . . 72 . 77 . . . 78 73 . Volleys Fired 358 | 6 31 54 5 . 5 11 73 61 20 . 15 50 27 Largest 3 | 2 2 2 2 . 2 2 2 2 2 . 2 3 3 Hottest 223 | 70 70 112 136 . 136 136 136 160 130 . 136 204 223 Shots Fired 757 | 12 62 108 10 . 10 22 143 119 40 . 32 149 50 Gun 357 | 12 62 108 . . . . 55 81 39 . . . . Cannon 397 | . . . 10 . 10 22 85 38 1 . 32 149 50 Launcher 3 | . . . . . . . 3 . . . . . . Special . | . . . . . . . . . . . . . . Kinetic 73 | 6 31 36 . . . . . . . . . . . Thermal 681 | 6 31 72 10 . 10 22 140 119 40 . 32 149 50 Explosive 3 | . . . . . . . 3 . . . . . . Electromagnetic . | . . . . . . . . . . . . . . Robot Hit Streak 22 | 5 5 8 7 . 7 6 8 15 22 . 5 16 13 Robot Miss Streak 7 | 1 7 4 1 . 1 1 3 2 1 . 2 4 2 Penetration Max . | . . . . . . . . . . . . . . Secondary Targets 4 | . . 1 . . . . . 1 2 . . . . Max Gunslinging Chain 1 | . . 1 . . . . . 1 1 . . . . Shots Hit Robots 591 | 8 34 63 8 . 8 14 86 121 41 . 20 133 55 Core Hits 252 | 3 14 24 3 . 1 7 36 72 15 . 7 51 19 Critical Kills 8 | . . 1 . . . . 2 3 . . . . 2 Critical Parts Destroyed 9 | . . . . . . . . 1 . . . 6 2 Critical Strikes 34 | . . 6 . . . . 5 7 6 . . 6 4 Burn 17 | . . 5 . . . . 3 3 6 . . . . Meltdown 3 | . . . . . . . 2 . . . . . 1 Destroy 1 | . . 1 . . . . . . . . . . . Smash 13 | . . . . . . . . 4 . . . 6 3 Melee Attacks 131 | . . . . . . . . 36 7 . 13 49 26 Impact 131 | . . . . . . . . 36 7 . 13 49 26 Slashing . | . . . . . . . . . . . . . . Piercing . | . . . . . . . . . . . . . . Sneak Attacks 8 | . . . . . . . . 4 . . 1 3 . Combat Hostiles 1 | . . . . . . . . 1 . . . . . Follow-up Attacks . | . . . . . . . . . . . . . . Damage Inflicted 14714 | 82 367 860 164 . 163 308 2056 3436 915 . 555 3731 2077 Guns 4122 | 77 363 857 . . . . 716 1468 641 . . . . Cannons 5960 | . . . 164 . 163 308 1082 532 25 . 409 2145 1132 Explosions 239 | . . . . . . . 239 . . . . . . Melee 4250 | . . . . . . . . 1385 219 . 146 1572 928 Ramming 143 | 5 4 3 . . . . 19 51 30 . . 14 17 Kinetic 418 | 52 152 214 . . . . . . . . . . . Thermal 9664 | 25 211 643 164 . 163 308 1798 2000 666 . 409 2145 1132 Explosive 239 | . . . . . . . 239 . . . . . . Electromagnetic . | . . . . . . . . . . . . . . Impact 4250 | . . . . . . . . 1385 219 . 146 1572 928 Slashing . | . . . . . . . . . . . . . . Piercing . | . . . . . . . . . . . . . . Highest Corruption 13 | . . . . . . . . 2 13 13 13 1 5 Average Corruption 6 | . . . . . . . . 1 7 13 13 1 4 Corruption Purged . | . . . . . . . . . . . . . . Corruption Blocked . | . . . . . . . . . . . . . . Effects 69 | . . . . . . . . 3 8 6 38 10 4 Message Errors 18 | . . . . . . . . . 4 . 12 2 . Matter Fused 19 | . . . . . . . . . 2 3 9 3 2 Heat Flow Errors 10 | . . . . . . . . 2 . 2 4 1 1 Energy Discharges 6 | . . . . . . . . . 1 . 4 1 . Parts Rejected 1 | . . . . . . . . . 1 . . . . Data Loss (minor) 8 | . . . . . . . . . . 1 4 3 . Data Loss (major) 2 | . . . . . . . . . . . 2 . . Misfires 2 | . . . . . . . . . . . 2 . . Alerts 1 | . . . . . . . . . . . 1 . . Weapon Failures 2 | . . . . . . . . 1 . . . . 1 Overload Shots . | . . . . . . . . . . . . . . Overflow Damage 1167 | . . . . . . . 11 285 25 . 91 480 275 Projectiles 39 | . . . . . . . 11 1 . . . 16 11 Explosions . | . . . . . . . . . . . . . . Melee 1128 | . . . . . . . . 284 25 . 91 464 264 Knockbacks 31 | . . . . . . . . 9 . . . 13 9 Impact 22 | . . . . . . . . 9 . . . 8 5 Kinetic . | . . . . . . . . . . . . . . Secondary 9 | . . . . . . . . . . . . 5 4 Self-Inflicted Damage . | . . . . . . . . . . . . . . Shots . | . . . . . . . . . . . . . . Rammed 21 | 1 2 3 . . . . 3 6 5 . . 1 . Targets Rammed 33 | 1 3 4 . . . . 6 9 6 . . 2 2 Kicked 2 | . . . . . . . . . . . . . 2 Crushed 10 | . 1 1 . . . . 3 3 1 . . 1 . Highest Temperature 439 | 100 170 178 231 . 165 . 67 242 65 262 165 404 439 Average Temperature 73 | 47 65 46 122 . 83 . 18 53 17 122 61 144 68 Received Heat Transfer 2601 | . 24 243 75 . . . 576 372 288 . 63 777 183 Effects 12 | . . . . . . . . . . 3 . 7 2 Shutdowns 1 | . . . . . . . . . . . . 1 . Energy Bleed 1 | . . . . . . . . . . . . 1 . Interference 10 | . . . . . . . . . . 3 . 5 2 Siege Activations . | . . . . . . . . . . . . . . Robots Corrupted . | . . . . . . . . . . . . . . Combat Hostiles . | . . . . . . . . . . . . . . Parts Fried 15 | . . . . . . . . 2 . . 3 6 4 Impact Corruptions 48 | . . . . . . . . 14 1 . 3 17 13 Robots Melted 6 | . . 1 . . 1 . 3 . . . . . 1 Combat Hostiles 6 | . . 1 . . 1 . 3 . . . . . 1 Parts Melted 46 | . 1 6 . . . . 7 10 5 . 1 12 4 Heat Transferred 19393 | 74 629 2072 296 . 296 555 3515 4334 1702 . 703 3700 1517 Parts Sabotaged . | . . . . . . . . . . . . . . Parts Stolen . | . . . . . . . . . . . . . . Parts Stripped . | . . . . . . . . . . . . . . Power Chain Reactions . | . . . . . . . . . . . . . . Missiles Intercepted . | . . . . . . . . . . . . . . Alert | -11 -10 -9 -9 -9 -8 -8 -8 -7 -7 -7 -6 -6 -5 ------- Run | Scr Mat Mat Min Exi Min Mat Sto Fac Low Dat Pro Fac Fac Peak Influence 750 | 5 244 365 118 . 45 192 437 750 . . . 359 291 Initial 130 | . 3 102 68 . . 17 80 130 . . . 21 123 Average 245 | 2 108 242 99 . 38 121 227 433 . . . 160 181 Maximum Alert Level 3 | . 1 1 . . . . 2 3 . . . 1 1 Low Security (%) 47 | 100 76 39 100 . 100 100 42 2 . . . 68 70 Level 1 37 | . 23 60 . . . . 46 46 . . . 31 29 Level 2 13 | . . . . . . . 10 44 . . . . . Level 3 1 | . . . . . . . . 6 . . . . . Level 4 . | . . . . . . . . . . . . . . Level 5 . | . . . . . . . . . . . . . . High Security . | . . . . . . . . . . . . . . Max Security . | . . . . . . . . . . . . . . Squads Dispatched 28 | . 3 1 . . . . 3 10 . . . 7 4 Investigation 6 | . . 1 . . . . . 4 . . . 1 . Extermination 4 | . . . . . . . . 2 . . . 2 . Reinforcement 14 | . 3 . . . . . 2 1 . . . 4 4 Assault . | . . . . . . . . . . . . . . Garrison 4 | . . . . . . . 1 3 . . . . . Intercept . | . . . . . . . . . . . . . . Searches Triggered . | . . . . . . . . . . . . . . Construction Impeded 1 | . . . . . . . 1 . . . . . . Haulers Reinforced . | . . . . . . . . . . . . . . Active Scanning Responses . | . . . . . . . . . . . . . . Cargo Convoy Interrupts . | . . . . . . . . . . . . . . Stealth | -11 -10 -9 -9 -9 -8 -8 -8 -7 -7 -7 -6 -6 -5 --------- Run | Scr Mat Mat Min Exi Min Mat Sto Fac Low Dat Pro Fac Fac Distress Signals 9 | . 3 . . . . 1 3 2 . . . . . Communications Jammed . | . . . . . . . . . . . . . . Distress Signals . | . . . . . . . . . . . . . . Times Spotted 175 | . 16 21 2 . 1 6 33 36 9 . 4 31 16 Peak Tracking Total 7 | . 7 4 2 . 1 3 7 4 7 . 2 4 7 Tactical Retreats 12 | . 1 1 . . . . 1 6 . . . 1 2 Traps | -11 -10 -9 -9 -9 -8 -8 -8 -7 -7 -7 -6 -6 -5 ------- Run | Scr Mat Mat Min Exi Min Mat Sto Fac Low Dat Pro Fac Fac Traps Triggered 3 | . . 1 . . . . . 1 . . . 1 . Indirectly . | . . . . . . . . . . . . . . Trap Hack Attempts . | . . . . . . . . . . . . . . Triggered . | . . . . . . . . . . . . . . Disarmed . | . . . . . . . . . . . . . . Reprogrammed . | . . . . . . . . . . . . . . Reused . | . . . . . . . . . . . . . . Traps Extracted . | . . . . . . . . . . . . . . Installed . | . . . . . . . . . . . . . . Triggered . | . . . . . . . . . . . . . . Machines | -11 -10 -9 -9 -9 -8 -8 -8 -7 -7 -7 -6 -6 -5 ---------- Run | Scr Mat Mat Min Exi Min Mat Sto Fac Low Dat Pro Fac Fac Machines Disabled 7 | . . . . . . 1 4 . . . 1 1 . Max in Single Turn 1 | . . . . . . 1 1 . . . 1 1 . Garrison Access 3 | . . . . . . . 1 1 . . . 1 . Machines Sabotaged . | . . . . . . . . . . . . . . Garrisons Compromised . | . . . . . . . . . . . . . . Overloaded Fab Kills . | . . . . . . . . . . . . . . Hacking | -11 -10 -9 -9 -9 -8 -8 -8 -7 -7 -7 -6 -6 -5 --------- Run | Scr Mat Mat Min Exi Min Mat Sto Fac Low Dat Pro Fac Fac Machines Accessed 35 | . 3 3 . 1 . 1 10 7 . 3 1 5 1 Terminals 19 | . 3 2 . . . . 7 4 . . . 2 1 Fabricators 3 | . . . . . . . . 2 . . . 1 . Repair Stations 4 | . . 1 . . . . 2 . . . . 1 . Recycling Units . | . . . . . . . . . . . . . . Scanalyzers 1 | . . . . . . 1 . . . . . . . Garrison Access 3 | . . . . . . . 1 1 . . . 1 . Total Hacks 99 | . 7 8 . 1 . 2 23 19 . 26 1 10 2 Successful 66 | . 4 4 . 1 . 2 12 10 . 26 1 5 1 Failed 33 | . 3 4 . . . . 11 9 . . . 5 1 Catastrophic 9 | . 1 2 . . . . 4 1 . . . 1 . Database Lockouts . | . . . . . . . . . . . . . . Manual 33 | . 5 5 . . . . 13 10 . . . . . Terminals 43 | . 7 5 . . . . 15 10 . . . 4 2 Fabricators 10 | . . . . . . . . 8 . . . 2 . Repair Stations 11 | . . 3 . . . . 5 . . . . 3 . Recycling Units . | . . . . . . . . . . . . . . Scanalyzers 2 | . . . . . . 2 . . . . . . . Garrison Access 5 | . . . . . . . 3 1 . . . 1 . Terminal Hacks 41 | . 2 2 . 1 . . 5 2 . 26 1 1 1 Record 8 | . . . . 1 . . . . . 6 1 . . Part Schematic 13 | . . 1 . . . . . . . 12 . . . Robot Schematic 5 | . . . . . . . . . . 5 . . . Robot Analysis 1 | . . . . . . . . 1 . . . . . Prototype ID Bank 4 | . 1 . . . . . . . . 3 . . . Open Door 2 | . . . . . . . 2 . . . . . . Unreport Threat 3 | . . 1 . . . . 2 . . . . . . Locate Traps 3 | . . . . . . . 1 1 . . . 1 . Zone Layout 2 | . 1 . . . . . . . . . . . 1 Fabricator Hacks 6 | . . . . . . . . 4 . . . 2 . Load Schematic 3 | . . . . . . . . 2 . . . 1 . Build 3 | . . . . . . . . 2 . . . 1 . Repair Station Hacks 7 | . . 2 . . . . 4 . . . . 1 . Scan Component 4 | . . 1 . . . . 2 . . . . 1 . Repair 3 | . . 1 . . . . 2 . . . . . . Recycling Unit Hacks . | . . . . . . . . . . . . . . Scanalyzer 2 | . . . . . . 2 . . . . . . . Insert Component 1 | . . . . . . 1 . . . . . . . Analyze 1 | . . . . . . 1 . . . . . . . Garrison Access Hacks 2 | . . . . . . . 1 . . . . 1 . Seal Access 2 | . . . . . . . 1 . . . . 1 . Unauthorized Hacks 8 | . 2 . . . . . 2 4 . . . . . Terminals 6 | . 2 . . . . . 2 2 . . . . . Assimilate 1 | . 1 . . . . . . . . . . . . Botnet 5 | . 1 . . . . . 2 2 . . . . . Fabricators 1 | . . . . . . . . 1 . . . . . Prioritize 1 | . . . . . . . . 1 . . . . . Repair Stations . | . . . . . . . . . . . . . . Recycling Units . | . . . . . . . . . . . . . . Scanalyzers . | . . . . . . . . . . . . . . Garrison Access 1 | . . . . . . . . 1 . . . . . Jam 1 | . . . . . . . . 1 . . . . . Data Cores Recovered 1 | . . . . . . . . . . . . 1 . Used . | . . . . . . . . . . . . . . Hacking Detections 26 | . 2 3 . . . 1 9 6 . . . 4 1 Full Trace Events 4 | . 1 . . . . . . 2 . . . 1 . Feedback Events . | . . . . . . . . . . . . . . Feedback Blocked . | . . . . . . . . . . . . . . Robot Schematics Acquired 5 | . . . . . . . . . . 5 . . . Robots Built . | . . . . . . . . . . . . . . Authchips . | . . . . . . . . . . . . . . Time . | . . . . . . . . . . . . . . Total Robot Build Rating . | . . . . . . . . . . . . . . Part Schematics Acquired 14 | . . 1 . . . 1 . . . 12 . . . Parts Built 4 | . . . . . . . . 2 . . . 2 . Authchips . | . . . . . . . . . . . . . . Time 215 | . . . . . . . . 109 . . . 106 . Total Part Build Rating 18 | . . . . . . . . 6 . . . 12 . Parts Repaired 3 | . . 1 . . . . 2 . . . . . . Time 78 | . . 26 . . . . 52 . . . . . . Parts Recycled . | . . . . . . . . . . . . . . Recycled Matter . | . . . . . . . . . . . . . . Retrieved Matter . | . . . . . . . . . . . . . . Retrieved Components . | . . . . . . . . . . . . . . Parts Scanalyzed 1 | . . . . . . 1 . . . . . . . Part Schematics Acquired 1 | . . . . . . 1 . . . . . . . Parts Damaged . | . . . . . . . . . . . . . . Bothacking | -11 -10 -9 -9 -9 -8 -8 -8 -7 -7 -7 -6 -6 -5 ------------ Run | Scr Mat Mat Min Exi Min Mat Sto Fac Low Dat Pro Fac Fac Used RIF Installer . | . . . . . . . . . . . . . . Robots Hacked . | . . . . . . . . . . . . . . Non-combat . | . . . . . . . . . . . . . . Combat . | . . . . . . . . . . . . . . Robot Hacks Applied . | . . . . . . . . . . . . . . Relay Couplers Released . | . . . . . . . . . . . . . . Fabnet Peak Effective % . | . . . . . . . . . . . . . . Robots Rewired 2 | . . . . . . . . . 2 . . . . Allies Hacked . | . . . . . . . . . . . . . . Hacks Repelled . | . . . . . . . . . . . . . . Allies | -11 -10 -9 -9 -9 -8 -8 -8 -7 -7 -7 -6 -6 -5 -------- Run | Scr Mat Mat Min Exi Min Mat Sto Fac Low Dat Pro Fac Fac Total Allies 3 | . . . . . . . . . 2 . 1 . . Largest Group 2 | . . . . . . . . . 2 2 2 2 . Highest-Rated Group 48 | . . . . . . . . . 48 48 48 48 . Highest-Rated Ally 32 | . . . . . . . . . 32 32 32 32 . Total Orders . | . . . . . . . . . . . . . . Ally Attacks 22 | . . . . . . . . . . . 20 2 . Total Damage 633 | . . . . . . . . . . . 559 74 . Kills 2 | . . . . . . . . . . . 2 . . Allies Corrupted . | . . . . . . . . . . . . . . Allies Melted 1 | . . . . . . . . . . . 1 . . Intel | -11 -10 -9 -9 -9 -8 -8 -8 -7 -7 -7 -6 -6 -5 ------- Run | Scr Mat Mat Min Exi Min Mat Sto Fac Low Dat Pro Fac Fac Robot Analysis Total 1 | . . . . . . . . 1 . . . . . Derelict Logs Recovered . | . . . . . . . . . . . . . . Drone Launches . | . . . . . . . . . . . . . . Drone Recoveries . | . . . . . . . . . . . . . . Exploration | -11 -10 -9 -9 -9 -8 -8 -8 -7 -7 -7 -6 -6 -5 ------------- Run | Scr Mat Mat Min Exi Min Mat Sto Fac Low Dat Pro Fac Fac Turns Passed 7753 | 101 381 655 149 284 60 334 979 1654 263 125 1028 1251 489 Spaces Moved 3446 | 48 172 248 81 177 29 156 380 704 91 77 579 538 166 Core 5 | 5 . . . . . . . . . . . . . Treads 3068 | 43 172 248 81 177 29 156 380 704 91 77 579 329 2 Legs 373 | . . . . . . . . . . . . 209 164 Wheels . | . . . . . . . . . . . . . . Hover . | . . . . . . . . . . . . . . Flight . | . . . . . . . . . . . . . . Fastest Speed 50 | 50 160 160 160 160 160 160 160 160 160 160 160 120 120 Average Speed 160 | 148 160 160 160 160 160 182 160 160 160 160 160 157 167 Slowest Speed 245 | 160 160 160 160 160 160 240 160 162 160 160 160 240 245 Overloaded Moves . | . . . . . . . . . . . . . . Propulsion Burnouts . | . . . . . . . . . . . . . . Robots Hopped . | . . . . . . . . . . . . . . Cave-ins Triggered . | . . . . . . . . . . . . . . Exploration Rate (%) 32 | 4 37 34 23 60 10 15 65 25 20 69 78 15 4 Regions Visited 13 Branch Regions 7 Pre-discovered Areas 2 | . . . . 1 . . . . . 1 . . . Known Exits Taken . | . . . . . . . . . . . . . . Unknown Exits Taken 13 | 1 1 1 1 1 1 1 1 1 1 1 1 1 . Scrap Searched 3 | . . . . . . . . . 2 . 1 . . Spaces Dug 33 | . . . . . . . 19 1 . . 10 3 . Terrain Destroyed 46 | . . . . . . . 29 1 . . 10 3 3 Melee 14 | . . . . . . . . 1 . . 10 3 . Projectile 3 | . . . . . . . . . . . . . 3 AOE 29 | . . . . . . . 29 . . . . . . Terrain Rammed . | . . . . . . . . . . . . . . Walls Destroyed . | . . . . . . . . . . . . . . Machines Disabled . | . . . . . . . . . . . . . . Actions | -11 -10 -9 -9 -9 -8 -8 -8 -7 -7 -7 -6 -6 -5 --------- Run | Scr Mat Mat Min Exi Min Mat Sto Fac Low Dat Pro Fac Fac Total 4730 | 63 220 411 90 178 33 188 620 1044 151 80 623 740 289 Wait 352 | . 3 42 . . . . 74 153 4 . . 63 13 Move 3434 | 48 171 247 80 176 28 155 379 703 90 76 578 537 166 Hop . | . . . . . . . . . . . . . . Pick Up 106 | 3 10 23 . . . 11 18 17 2 . 1 12 9 Fast Attach 43 | 6 1 5 . . . 1 5 2 3 . 2 8 10 Attach 37 | . . 5 . . . 1 1 6 4 2 2 7 9 Detach 4 | . . . . . . . . . . 2 . . 2 Swap 97 | . . 7 4 1 . 3 28 26 4 . 10 5 9 Drop 128 | . 1 24 1 1 . 6 36 31 3 . 2 7 16 Fire 358 | 6 31 54 5 . 5 11 73 61 20 . 15 50 27 Melee 131 | . . . . . . . . 36 7 . 13 49 26 Ram . | . . . . . . . . . . . . . . Kick 2 | . . . . . . . . . . . . . 2 Crush 30 | . 3 4 . . . . 6 9 6 . . 2 . Escape Stasis . | . . . . . . . . . . . . . . Rewire 8 | . . . . . . . . . 8 . . . . Trap . | . . . . . . . . . . . . . . Miscellaneous . | . . . . . . . . . . . . . . Route ------- -11/Scrapyard -10/Materials (discovered 2 exits: *Mat x2) -9/Materials -9/Mines -9/Exiles (discovered 2 exits: [*Min x2]) -8/Mines -8/Materials -8/Storage -7/Factory -7/Lower Caves -7/Data Miner -6/Proximity Caves -6/Factory (discovered 2 exits: *Fac / [*Low]) -5/Factory History --------- Turn | Location | Event 18 | -11/Scrapyard | Discovered new exit (range 15) 102 | -11/Scrapyard | Entered Materials 304 | -10/Materials | Build established: Mutant 377 | -10/Materials | Discovered new exit (range 16) 463 | -10/Materials | Discovered new exit (range 10) 483 | -10/Materials | Entered another Materials area 483 | -9/Materials | Evolved 2 slots: Propulsion x1, Utility x1 864 | -9/Materials | Repaired Lgt. Treads 963 | -9/Materials | Build established: Scavenger-Mutant 1034 | -9/Materials | Discovered new exit (range 8) 1138 | -9/Materials | Entered Mines 1281 | -9/Mines | Deemed a non-threat by the Exiles lab entrance 1281 | -9/Mines | Discovered new exit (range 5) 1287 | -9/Mines | Entered Exiles 1308 | -9/Exiles | Discovered new exit (range 15) 1327 | -9/Exiles | Met 8R-AWN 1353 | -9/Exiles | Met EX-HEX 1441 | -9/Exiles | Met EX-DEC 1471 | -9/Exiles | Met EX-BIN 1497 | -9/Exiles | Learned location of Zion (-6) 1558 | -9/Exiles | Discovered new exit (range 10) 1571 | -9/Exiles | Entered Mines 1615 | -8/Mines | Discovered new exit (range 8) 1631 | -8/Mines | Entered Materials 1631 | -8/Materials | Evolved 2 slots: Propulsion x1, Utility x1 1933 | -8/Materials | Discovered new exit (range 5) 1965 | -8/Materials | Entered Storage 1995 | -8/Storage | Repaired Lgt. Treads 2096 | -8/Storage | Repaired Lgt. Treads 2708 | -8/Storage | Garrison activated, responded to threat 2933 | -8/Storage | Discovered new exit (range 5) 2944 | -8/Storage | Entered Factory 2944 | -7/Factory | Evolved 2 slots: Utility x2 3211 | -7/Factory | Fabricated Hrd. Medium Armor Plating (x1) 4144 | -7/Factory | Build established: Mutant 4346 | -7/Factory | Garrison activated, responded to threat 4512 | -7/Factory | Fabricated Hrd. Medium Armor Plating (x1) 4574 | -7/Factory | Discovered new exit (range 11) 4598 | -7/Factory | Entered Lower Caves 4668 | -7/Lower Caves | Attracted the attention of an 0b10 outpost 4762 | -7/Lower Caves | System corruption reached 10% 4842 | -7/Lower Caves | A Derelict revealed a hidden shortcut to meet someone special 4861 | -7/Lower Caves | Entered Data Miner 4861 | -7/Data Miner | Accompanied by 2 allies 4861 | -7/Data Miner | Discovered new exit (range 6) 4893 | -7/Data Miner | Met Data Miner 4923 | -7/Data Miner | Learned location of Section 7 (-2) 4923 | -7/Data Miner | Acquired the access code to Warlord's prototype stash 4946 | -7/Data Miner | Received God Mode back door access code from Data Miner 4986 | -7/Data Miner | Entered Proximity Caves 4986 | -6/Proximity Caves | Accompanied by 2 allies 5070 | -6/Proximity Caves | Found Alien Artifact 5070 | -6/Proximity Caves | Identified Core Expander 5070 | -6/Proximity Caves | Installed Core Expander, added new Power slot 5211 | -6/Proximity Caves | Found Alien Artifact 5378 | -6/Proximity Caves | Spotted B-75 Beast 5398 | -6/Proximity Caves | Allies destroyed B-75 Beast 5980 | -6/Proximity Caves | Discovered new exit (range 8) 6014 | -6/Proximity Caves | Entered Factory 6014 | -6/Factory | Accompanied by 2 allies 6014 | -6/Factory | Evolved 2 slots: Utility x1, Weapon x1 6087 | -6/Factory | Discovered new exit (range 5) 6391 | -6/Factory | Fabricated Hvy. Phase Cannon (x2) 6653 | -6/Factory | Build established: Gunner 6844 | -6/Factory | Lost 5 parts (1p2n1u1w) 6846 | -6/Factory | Discovered new exit (range 16) 7072 | -6/Factory | Build established: Scavenger-Mutant 7107 | -6/Factory | Lost 3 parts (1p1n1w) 7265 | -6/Factory | Entered another Factory area 7265 | -5/Factory | Evolved 2 slots: Utility x2 7754 | -5/Factory | Self-destructed Last Messages --------------- 07742_ U-05 Engineer lays Concrete. 07745_ K-01 Serf collects debris. 07747_ U-05 Engineer lays Concrete. 07749_ K-01 Serf collects debris. 07749_ U-05 Engineer lays Concrete. 07750_ K-01 Serf destroyed. 07750_ U-05 Engineer lays Concrete. 07750_ K-01 Serf collects debris. 07751_ ALERT: Suspicious intruders detected, dispatching Cutter reinforcements to area. 07752_ U-05 Engineer lays Concrete. 07753_ System corrupted: Heat flow error (+229). 07753_ U-05 Engineer lays Concrete. 07753_ K-01 Serf collects debris. 07753_ U-05 Engineer lays Concrete. 07754_ Overheating: System interference. 07754_ Hvy. Phase Cannon temporarily disabled. 07754_ Armor Integrity Analyzer temporarily disabled. 07754_ U-05 Engineer lays Concrete. 07754_ K-01 Serf collects debris. Map ----- +----------------------------------------------------+ | ?????????????????????????????????????????????????? | | ?????????????????????????????????????????????????? | | ?????????????????????????????????????????????????? | | ?????????????????????????????????????????????????? | | ?????????????????????????????????????????????????? | | ?????????????????????????????????????????????????? | | ?????????????????????????????????????????????????? | | ?????????????????????????????????????????????????? | | ?????????????????????????????????????????????????? | | ?????????????????# """ """ # # ????????? | | ?????????????????# """ """ + # ????????? | | ?????????????????# # # ????????? | | ?????????????????# # # ????????? | | ??????????######?############## # ????????? | | ????????? ###### ######### # ????????? | | ????????? # ;?# # ????????? | | ????????? # #?# # ????????? | | ????????? # ! #?# # ????????? | | ????????? # #?# # ????????? | | ?????????# # #?# # ????????? | | ?????????# # u #?# #####????????? | | ?????????# # % #?# ????????? | | ?????????# # * k #?# ????????? | | ?????????# # u !=| %#?# ????????? | | ########?# # % !%*!= ### """ ????????? | | #?# # ! x!=%!%@ ;## """ ????????? | | " " " #?# #%%%x%%=]%k= ;## """ ????????? | | " " " #?# ###/###!######## H ????????? | | " " " #?# % % * """ """ ????????? | | " " " ### """ """ ????????? | | " " " / """ """ ????????? | | " " " ### ????????? | | " " " #?# k ????????? | | " " " #?# ###+#############+######+#????????? | | " " " #?# # ## # ????????? | | #?# # ## # ????????? | | #?# # ## # ????????? | | ########?# # ## "" # ????????? | | ?????????# # """" """" ## "" # ????????? | | ?????????# # """" """" ## """ # ????????? | | ?????????# #? ???????????????????????????????? | | ?????????# #? ???????????????????????????????? | | ?????????# #? ???????????????????????????????? | | ?????????# #?????????????????????????????????? | | ?????????+ #?????????????????????????????????? | | ?????????? ??????????????????????????????????? | | ?????????????????????????????????????????????????? | | ?????????????????????????????????????????????????? | | ?????????????????????????????????????????????????? | | ?????????????????????????????????????????????????? | +----------------------------------------------------+ Best States ------------- Heat Dissipation 78 Energy Generation 38 Energy Capacity 340 Matter Stores 300 Matter Capacity 300 Sight Range 16 Terrain Scan Density 10 Armor Coverage 450 Resistance: KI 30 Resistance: TH 20 Evasion (%) 55 Targeting Accuracy 12 Melee Accuracy 13 Core Analysis 9 Armor Integrity Analysis 30 Recoil Reduction 4 Energy Filtering 50 Defensive Hacking 12 Item Schematics ----------------- Imp. Treads | -9/Materials | Hacked Hrd. Medium Armor Plating | -8/Materials | Scanalyzed Combat Drone Bay | -7/Data Miner | Free Lgt. Regenerative Plating | -7/Data Miner | Free Cld. Cesium-ion Thruster | -7/Data Miner | Free Gravity Neutralizer | -7/Data Miner | Free Gui. EMP Blaster | -7/Data Miner | Free Gyrokinetic Inverter | -7/Data Miner | Free Hvy. Phase Cannon | -7/Data Miner | Free Imp. Transmission Jammer | -7/Data Miner | Free Hyb. Fission Core | -7/Data Miner | Free KE Penetrator | -7/Data Miner | Free Imp. Kinecellerator | -7/Data Miner | Free Phase Gun | -7/Data Miner | Free Robot Schematics ------------------ L-41 Fighter | -7/Data Miner | Free S-27 Virus | -7/Data Miner | Free H-55 Commando | -7/Data Miner | Free G-47 Trooper | -7/Data Miner | Free B-60 Warrior | -7/Data Miner | Free Fabricated ------------ Hrd. Medium Armor Plating | x1 | -7/Factory Hrd. Medium Armor Plating | x1 | -7/Factory Hvy. Phase Cannon | x2 | -6/Factory Alien Tech Used ----------------- Core Expander Achievements -------------- None Challenges ------------ None Game ------ Seed PortableCoolantChronowheel Manual? 0 Play Time 00:52:11 Cumulative 707.6 hours Start 2022.04.07 @ 12:55:32 End 2022.04.07 @ 19:03:26 Sessions 3 Manual Loads 0 Difficulty Rogue Special Mode None Game No. 1083 Rogue 1083 Adventurer 0 Explorer 0 Win Type - Total 67 Types 41/1/9/12/4/0/0/0/0 Lore% 89 Gallery% 89 Achievement% 83 Wizard Run 0 Options --------- ASCII 1 Keyboard 0 Movement Vi Keybinds 0 Fullscreen 0 Font 14/SmallcapsGlow Map View 76x50 Tactical HUD 1 Map Filters NONE Filters NONE Steam 1 RUN: 1ecb7663-dd01-44bf-b756-e33729ad4df4